Workbook

Sheet Dataset
B2: Using Goal Seek
B4: Amount Details
B5: Loan | C5: 30000
B6: Term in Month | C6: 36
B7: Interest Rate | C7: 0.15
B9: Payment | C9: =PMT(C7/12,C6,C5) -> -1039.959855

Sheet Solving Mortgage Problem
B2: Solving Mortgage Problem | F2: Do it Yourself
B4: Amount Details | F4: Amount Details
B5: Loan | C5: 30000 | F5: Loan | G5: 30000
B6: Term in Month | C6: 36 | F6: Term in Month | G6: 36
B7: Interest Rate | C7: 0.122489388 | F7: Interest Rate | G7: 0.15
B9: Payment | C9: =PMT(C7/12,C6,C5) -> -1000 | F9: Payment | G9: =PMT(G7/12,G6,G5) -> -1039.959855

Sheet Finding Unknown Value
B2: Finding Unknown Value | F2: Do it Yourself
B4: Candy A (Pounds) | C4: x | F4: Candy A (Pounds) | G4: x
B5: Equation for Average Cost | C5: (10x + (40-x)*6)/40 | F5: Equation for Average Cost | G5: (10x + (40-x)*6)/40
B7: Candy A (Pounds) | C7: 20 | F7: Candy A (Pounds)
B8: Candy A Unit Price | C8: 10 | F8: Candy A Unit Price | G8: 10
B9: Candy B Unit Price | C9: 6 | F9: Candy B Unit Price | G9: 6
B11: Average Cost | C11: =(C7*C8+(40-C7)*C9)/40 -> 8 | F11: Average Cost | G11: =(G7*G8+(40-G7)*G9)/40 -> 6

Sheet Finding Breakeven Point
B2: Finding Breakeven Point | G2: Do it Yourself
B4: Amount Details | G4: Amount Details
B5: Fixed Cost | C5: 15000 | G5: Fixed Cost | H5: 15000
B6: Pay for Union | C6: 300 | G6: Pay for Union | H6: 300
B7: Pay for each speaker | C7: 700 | G7: Pay for each speaker | H7: 700
B8: Number of speakers | C8: 10 | G8: Number of speakers | H8: 10
B9: Charge for each non-speaker | C9: 900 | G9: Charge for each non-speaker | H9: 900
B10: Number of non-speakers | C10: 24.77777778 | G10: Number of non-speakers
B12: Profit | C12: =C9*C10-C5-C6-C7*C8 -> 0 | G12: Profit | H12: =H9*H10-H5-H6-H7*H8 -> -22300

Sheet Solving Equation
B2: Solving Equation | G2: Do it Yourself
B4: Equation | C4: x^2+10x+25 | G4: Equation | H4: x^2+10x+25
B5: Variable (x) | C5: 4.999992693 | G5: Variable (x)
B7: Solution | C7: =C5^2-10*C5+25 -> 5.339373388e-11 | G7: Solution | H7: =H5^2-10*H5+25 -> 25

Sheet Effective Interest Rate
B2: Effective Interest Rate | G2: Do it Yourself
B4: Amount Details | G4: Amount Details
B5: Nominal Interest Rate | C5: 0.1 | G5: Nominal Interest Rate | H5: 0.1
B6: Compounding Periods Per Year | C6: 1.316498053 | G6: Compounding Periods Per Year | H6: 12
B8: Effective Interest Rate | C8: =((1+C5/C6)^C6)-1 -> 0.1011818817 | G8: Effective Interest Rate | H8: =((1+H5/H6)^H6)-1 -> 0.1047130674

Sheet Goal Seek for Multiple Cells
B2: Using Goal Seek for Multiple Cells | H2: Do it Yourself
B4: Product | C4: Total Cost | D4: Selling Price | E4: Profit Percentage | H4: Product | I4: Total Cost | J4: Selling Price | K4: Profit Percentage
B5: Mobile | C5: 4000 | D5: 5400 | E5: =((D5-C5)/C5)*100% -> 0.35 | H5: Mobile | I5: 4000 | J5: 4800 | K5: =((J5-I5)/I5)*100% -> 0.2
B6: Headphone | C6: 3000 | D6: 4050 | E6: =((D6-C6)/C6)*100% -> 0.35 | H6: Headphone | I6: 3000 | J6: 4000 | K6: =((J6-I6)/I6)*100% -> 0.3333333333
B7: Router | C7: 3500 | D7: 4725 | E7: 0.35 | H7: Router | I7: 3500 | J7: 4000 | K7: 0.1428571429
B8: Camera | C8: 5000 | D8: 6750 | E8: 0.35 | H8: Camera | I8: 5000 | J8: 5500 | K8: 0.1
B9: Printer | C9: 2500 | D9: 3375 | E9: 0.35 | H9: Printer | I9: 2500 | J9: 2800 | K9: 0.12

Sheet Goal Seek Precision
B2: Goal Seek Precision | G2: Do it Yourself
B4: Amount Details | G4: Amount Details
B5: Nominal Interest Rate | C5: 0.1 | G5: Nominal Interest Rate | H5: 0.1
B6: Compounding Periods Per Year | C6: 1.673820952 | G6: Compounding Periods Per Year | H6: 12
B8: Effective Interest Rate | C8: =((1+C5/C6)^C6)-1 -> 0.102 | G8: Effective Interest Rate | H8: =((1+H5/H6)^H6)-1 -> 0.1047130674
